fUSD/lending_fUSD_20250123
["ID","MTS","AMOUNT","RATE_DAILY","PERIOD"]
[350153761,1737659439104,-500.0,0.00016438,2]
[350153763,1737659439114,-171.48456704,0.00016438,2]
[350153765,1737659439123,-500.0,0.00016438,2]
[350153767,1737659439133,-500.0,0.00016438,2]
[350153769,1737659439142,-267.9831193,0.00016438,2]
[350153771,1737659439155,-232.0168807,0.00016438,2]
[350153773,1737659439164,-394.42545405,0.00016438,2]
[350153775,1737659439174,-500.0,0.00016438,2]
[350153777,1737659439183,-503.21137808,0.00016438,2]
[350153779,1737659439192,-500.0,0.00016438,2]
[350153781,1737659439202,-500.0,0.00016438,2]
[350153783,1737659439211,-500.0,0.00016438,2]
[350153785,1737659439221,-500.0,0.00016438,2]
[350153788,1737659439231,-500.0,0.00016438,2]
[350153790,1737659439240,-500.0,0.00016438,2]
[350153791,1737659439252,-500.0,0.00016438,2]
[350153793,1737659439262,-500.0,0.00016438,2]
[350153795,1737659439271,-500.0,0.00016438,2]
[350153798,1737659439281,-500.0,0.00016438,2]
[350153799,1737659439291,-500.0,0.00016438,2]
[350153801,1737659439301,-503.33122706,0.00016438,2]
[350153803,1737659439311,-500.0,0.00016438,2]
[350153805,1737659439322,-500.0,0.00016438,2]
[350153807,1737659439333,-500.0,0.00016438,2]
[350153809,1737659439344,-500.0,0.00016438,2]
[350153811,1737659439354,-500.0,0.00016438,2]
[350153813,1737659439364,-500.0,0.00016438,2]
[350153815,1737659439375,-500.0,0.00016438,2]
[350153817,1737659439385,-500.0,0.00016438,2]
[350153819,1737659439394,-158.9431274,0.00016438,2]
[350153821,1737659439404,-500.0,0.00016438,2]
[350153823,1737659439417,-265.70008017,0.00016438,2]
[350153826,1737659439431,-234.29991983,0.00016438,2]
[350153829,1737659439440,-70.3729625,0.00016438,2]
[350153831,1737659439462,-429.6270375,0.00016438,2]
[350153834,1737659439471,-500.0,0.00016438,2]
[350153837,1737659439482,-138.3729621,0.00016438,2]
[350153839,1737659439493,-361.6270379,0.00016438,2]
[350153842,1737659439505,-500.0,0.00016438,2]
[350153844,1737659439515,-500.0,0.00016438,2]
[350153846,1737659439524,-171.7212201,0.00016438,2]
[350153864,1737659439705,-328.2787799,0.00016438,2]
[350153865,1737659439715,-297.1109851,0.00016438,2]
[350153866,1737659439727,-202.8890149,0.00016438,2]
[350153867,1737659439736,-500.0,0.00016438,2]
[350153868,1737659439747,-500.0,0.00016438,2]
[350153869,1737659439757,-500.0,0.00016438,2]
[350153870,1737659439767,-500.0,0.00016438,2]
[350153871,1737659439776,-500.0,0.00016438,2]
[350153872,1737659439787,-500.0,0.00016438,2]
[350153873,1737659439797,-326.01978257,0.00016438,2]
[350153874,1737659439807,-500.0,0.00016438,2]
[350153875,1737659439816,-500.0,0.00016438,2]
[350153876,1737659439826,-500.0,0.00016438,2]
[350153877,1737659439835,-30.46673943,0.00016438,2]
[350153880,1737659439847,-469.53326057,0.00016438,2]
[350153881,1737659439857,-500.0,0.00016438,2]
[350153883,1737659439867,-504.72,0.00016438,2]
[350153885,1737659439877,-500.0,0.00016438,2]
[350153887,1737659439887,-500.0,0.00016438,2]
[350153889,1737659439896,-500.0,0.00016438,2]
[350153891,1737659439905,-500.0,0.00016438,2]
[350153893,1737659439915,-500.0,0.00016438,2]
[350153895,1737659439925,-500.0,0.00016438,2]
[350153897,1737659439935,-500.0,0.00016438,2]
[350153899,1737659439945,-500.0,0.00016438,2]
[350153901,1737659439954,-500.0,0.00016438,2]
[350153903,1737659439965,-500.0,0.00016438,2]
[350153905,1737659439976,-500.0,0.00016438,2]
[350153907,1737659439987,-500.0,0.00016438,2]
[350153909,1737659440003,-500.0,0.00016438,2]
[350153911,1737659440013,-500.0,0.00016438,2]
[350153913,1737659440025,-500.0,0.00016438,2]
[350153915,1737659440037,-500.0,0.00016438,2]
[350153917,1737659440049,-500.0,0.00016438,2]
[350153919,1737659440059,-500.0,0.00016438,2]
[350153920,1737659440074,-500.0,0.00016438,2]
[350153922,1737659440084,-500.0,0.00016438,2]
[350153924,1737659440095,-500.0,0.00016438,2]
[350153926,1737659440105,-500.0,0.00016438,2]
[350153928,1737659440115,-500.0,0.00016438,2]
[350153930,1737659440126,-500.0,0.00016438,2]
[350153932,1737659440136,-500.0,0.00016438,2]
[350153935,1737659440146,-552.41196741,0.00016438,2]
[350153937,1737659440156,-500.0,0.00016438,2]
[350153938,1737659440166,-500.0,0.00016438,2]
[350153941,1737659440177,-500.0,0.00016438,2]
[350153942,1737659440187,-500.0,0.00016438,2]
[350153944,1737659440196,-500.0,0.00016438,2]
[350153946,1737659440206,-500.0,0.00016438,2]
[350153948,1737659440216,-500.0,0.00016438,2]
[350153950,1737659440226,-398.64264644,0.00016438,2]
[350153952,1737659440237,-252.57523643,0.00016438,2]
[350153954,1737659440254,-500.0,0.00016438,2]
[350153956,1737659440264,-500.0,0.00016438,2]
[350153958,1737659440276,-500.0,0.00016438,2]
[350153960,1737659440286,-500.0,0.00016438,2]
[350153962,1737659440297,-500.0,0.00016438,2]
[350153964,1737659440307,-500.0,0.00016438,2]
[350153966,1737659440316,-500.0,0.00016438,2]
[350153968,1737659440330,-500.0,0.00016438,2]
[350153970,1737659440342,-500.0,0.00016438,2]
[350153972,1737659440351,-500.0,0.00016438,2]
[350153974,1737659440361,-500.0,0.00016438,2]
[350153976,1737659440371,-500.0,0.00016438,2]
[350153978,1737659440382,-500.0,0.00016438,2]
[350153980,1737659440392,-636.29667959,0.00016438,2]
[350153982,1737659440403,-500.0,0.00016438,2]
[350153984,1737659440413,-500.0,0.00016438,2]
[350153986,1737659440422,-500.0,0.00016438,2]
[350153988,1737659440431,-500.0,0.00016438,2]
[350153990,1737659440441,-500.0,0.00016438,2]
[350153991,1737659440451,-500.0,0.00016438,2]
[350153993,1737659440461,-500.0,0.00016438,2]
[350153995,1737659440471,-238.9699999,0.00016438,2]
[350153997,1737659440480,-500.0,0.00016438,2]
[350153999,1737659440490,-301.62079349,0.00016438,2]
[350154015,1737659440638,-500.0,0.00016438,2]
[350154017,1737659440648,-500.0,0.00016438,2]
[350154019,1737659440657,-500.0,0.00016438,2]
[350154021,1737659440666,-500.0,0.00016438,2]
[350154023,1737659440675,-500.0,0.00016438,2]
[350154025,1737659440685,-279.99446864,0.00016438,2]
[350154027,1737659440694,-500.0,0.00016438,2]
[350154028,1737659440704,-500.0,0.00016438,2]
[350154030,1737659440713,-500.0,0.00016438,2]
[350154032,1737659440722,-500.89212781,0.00016438,2]
[350154034,1737659440732,-500.0,0.00016438,2]
[350154036,1737659440742,-500.0,0.00016438,2]
[350154038,1737659440753,-500.0,0.00016438,2]
[350154039,1737659440763,-500.0,0.00016438,2]
[350154040,1737659440772,-500.0,0.00016438,2]
[350154041,1737659440781,-500.0,0.00016438,2]
[350154042,1737659440791,-500.0,0.00016438,2]
[350154043,1737659440800,-610.92,0.00016438,2]
[350154044,1737659440810,-390.89702807,0.00016438,2]
[350154045,1737659440820,-500.0,0.00016438,2]
[350154046,1737659440830,-500.0,0.00016438,2]
[350154047,1737659440839,-706.81,0.00016438,2]
[350154048,1737659440848,-500.0,0.00016438,2]
[350154049,1737659440858,-500.0,0.00016438,2]
[350154050,1737659440868,-500.0,0.00016438,2]
[350154051,1737659440878,-500.0,0.00016438,2]
[350154053,1737659440887,-500.0,0.00016438,2]
[350154055,1737659440895,-500.0,0.00016438,2]
[350154057,1737659440904,-500.0,0.00016438,2]
[350154059,1737659440914,-1003.27,0.00016438,2]
[350154061,1737659440924,-500.0,0.00016438,2]
[350154063,1737659440933,-500.0,0.00016438,2]
[350154065,1737659440943,-625.99,0.00016438,2]
[350154067,1737659440953,-500.0,0.00016438,2]
[350154069,1737659440963,-500.0,0.00016438,2]
[350154071,1737659440972,-570.26,0.00016438,2]
[350154072,1737659440981,-500.0,0.00016438,2]
[350154074,1737659440991,-500.0,0.00016438,2]
[350154076,1737659441006,-500.0,0.00016438,2]
[350154078,1737659441015,-2144.07,0.00016438,2]
[350154080,1737659441025,-500.0,0.00016438,2]
[350154082,1737659441034,-500.0,0.00016438,2]
[350154084,1737659441044,-523.31,0.00016438,2]
[350154085,1737659441053,-500.0,0.00016438,2]
[350154086,1737659441063,-500.0,0.00016438,2]
[350154087,1737659441073,-912.68,0.00016438,2]
[350154088,1737659441083,-576.57,0.00016438,2]
[350154089,1737659441092,-500.0,0.00016438,2]
[350154090,1737659441101,-941.99,0.00016438,2]
[350154091,1737659441111,-814.94,0.00016438,2]
[350154092,1737659441120,-500.0,0.00016438,2]
[350154093,1737659441129,-552.46,0.00016438,2]
[350154094,1737659441138,-500.0,0.00016438,2]
[350154095,1737659441147,-500.0,0.00016438,2]
[350154096,1737659441157,-500.0,0.00016438,2]
[350154097,1737659441166,-500.0,0.00016438,2]
[350154098,1737659441176,-1765.72,0.00016438,2]
[350154099,1737659441185,-438.962228,0.00016438,2]
[350154100,1737659441195,-500.0,0.00016438,2]
[350154101,1737659441204,-500.0,0.00016438,2]
[350154102,1737659441214,-500.0,0.00016438,2]
[350154103,1737659441223,-500.0,0.00016438,2]
[350154104,1737659441232,-1382.35,0.00016438,2]
[350154105,1737659441242,-500.0,0.00016438,2]
[350154106,1737659441254,-500.0,0.00016438,2]
[350154107,1737659441264,-500.0,0.00016438,2]
[350154108,1737659441273,-500.0,0.00016438,2]
[350154109,1737659441282,-500.0,0.00016438,2]
[350154110,1737659441292,-500.0,0.00016438,2]
[350154111,1737659441301,-500.0,0.00016438,2]
[350154112,1737659441310,-500.0,0.00016438,2]
[350154113,1737659441320,-764.07,0.00016438,2]
[350154114,1737659441333,-500.0,0.00016438,2]
[350154115,1737659441345,-500.0,0.00016438,2]
[350154116,1737659441354,-527.26036361,0.00016438,2]
[350154117,1737659441363,-500.0,0.00016438,2]
[350154118,1737659441373,-500.0,0.00016438,2]
[350154119,1737659441383,-500.0,0.00016438,2]
[350154120,1737659441391,-663.09,0.00016438,2]
[350154121,1737659441401,-500.0,0.00016438,2]
[350154122,1737659441411,-500.0,0.00016438,2]
[350154123,1737659441421,-500.0,0.00016438,2]
[350154124,1737659441430,-1685.96,0.00016438,2]
[350154125,1737659441440,-500.0,0.00016438,2]
[350154126,1737659441449,-647.39,0.00016438,2]
[350154127,1737659441458,-784.74,0.00016438,2]
[350154128,1737659441468,-500.0,0.00016438,2]
[350154129,1737659441477,-500.0,0.00016438,2]
[350154130,1737659441486,-500.0,0.00016438,2]
[350154131,1737659441495,-816.16,0.00016438,2]
[350154132,1737659441507,-500.0,0.00016438,2]
[350154133,1737659441517,-500.0,0.00016438,2]
[350154134,1737659441526,-500.0,0.00016438,2]
[350154135,1737659441535,-500.0,0.00016438,2]
[350154136,1737659441544,-500.0,0.00016438,2]
[350154137,1737659441553,-500.0,0.00016438,2]
[350154138,1737659441563,-500.0,0.00016438,2]
[350154139,1737659441572,-504.112179,0.00016438,2]
[350154140,1737659441581,-500.0,0.00016438,2]
[350154141,1737659441591,-501.67702117,0.00016438,2]
[350154142,1737659441600,-500.0,0.00016438,2]
[350154143,1737659441611,-500.0,0.00016438,2]
[350154144,1737659441620,-500.0,0.00016438,2]
[350154145,1737659441631,-500.0,0.00016438,2]
[350154146,1737659441640,-500.0,0.00016438,2]
[350154147,1737659441650,-500.0,0.00016438,2]
[350154148,1737659441660,-500.0,0.00016438,2]
[350154149,1737659441669,-2469.54,0.00016438,2]
[350154150,1737659441678,-500.0,0.00016438,2]
[350154151,1737659441688,-748.67,0.00016438,2]
[350154152,1737659441697,-500.0,0.00016438,2]
[350154153,1737659441707,-500.0,0.00016438,2]
[350154154,1737659441716,-500.0,0.00016438,2]
[350154155,1737659441727,-500.0,0.00016438,2]
[350154156,1737659441737,-500.0,0.00016438,2]
[350154157,1737659441750,-896.15,0.00016438,2]
[350154158,1737659441759,-460.67801297,0.00016438,2]
[350154159,1737659441768,-500.0,0.00016438,2]
[350154160,1737659441777,-993.46,0.00016438,2]
[350154161,1737659441786,-500.0,0.00016438,2]
[350154162,1737659441795,-500.0,0.00016438,2]
[350154163,1737659441805,-500.0,0.00016438,2]
[350154164,1737659441814,-500.0,0.00016438,2]
[350154165,1737659441823,-857.28,0.00016438,2]
[350154166,1737659441833,-500.0,0.00016438,2]
[350154167,1737659441842,-1315.43,0.00016438,2]
[350154168,1737659441852,-1046.73,0.00016438,2]
[350154169,1737659441861,-500.0,0.00016438,2]
[350154170,1737659441871,-500.0,0.00016438,2]
[350154171,1737659441880,-500.0,0.00016438,2]
[350154172,1737659441889,-645.04,0.00016438,2]
[350154173,1737659441898,-500.0,0.00016438,2]
[350154174,1737659441908,-1815.73,0.00016438,2]
[350154175,1737659441918,-500.0,0.00016438,2]
[350154176,1737659441928,-500.0,0.00016438,2]
[350154177,1737659441937,-503.15,0.00016438,2]
[350154178,1737659441947,-862.15,0.00016438,2]
[350154179,1737659441955,-500.0,0.00016438,2]
[350154180,1737659441964,-500.0,0.00016438,2]
[350154181,1737659441973,-500.0,0.00016438,2]
[350154182,1737659441983,-500.0,0.00016438,2]
[350154183,1737659441992,-500.0,0.00016438,2]
[350154184,1737659442004,-500.0,0.00016438,2]
[350154185,1737659442013,-1898.25,0.00016438,2]
[350154186,1737659442022,-726.91,0.00016438,2]
[350154187,1737659442031,-500.0,0.00016438,2]
[350154188,1737659442040,-500.0,0.00016438,2]
[350154189,1737659442050,-500.0,0.00016438,2]
[350154190,1737659442060,-500.0,0.00016438,2]
[350154191,1737659442070,-500.0,0.00016438,2]
[350154192,1737659442079,-500.0,0.00016438,2]
[350154193,1737659442088,-500.0,0.00016438,2]
[350154194,1737659442097,-500.0,0.00016438,2]
[350154195,1737659442106,-501.21308654,0.00016438,2]
[350154196,1737659442114,-500.0,0.00016438,2]
[350154197,1737659442123,-907.74,0.00016438,2]
[350154198,1737659442132,-2176.53,0.00016438,2]
[350154199,1737659442142,-666.87,0.00016438,2]
[350154200,1737659442151,-905.1,0.00016438,2]
[350154201,1737659442161,-500.0,0.00016438,2]
[350154202,1737659442170,-500.0,0.00016438,2]
[350154203,1737659442179,-2308.47,0.00016438,2]
[350154204,1737659442188,-500.0,0.00016438,2]
[350154205,1737659442198,-500.0,0.00016438,2]
[350154206,1737659442207,-2228.58,0.00016438,2]
[350154207,1737659442216,-500.0,0.00016438,2]
[350154208,1737659442225,-500.0,0.00016438,2]
[350154209,1737659442235,-453.5096038,0.00016438,2]
[350154210,1737659442244,-500.0,0.00016438,2]
[350154211,1737659442257,-500.0,0.00016438,2]
[350154212,1737659442267,-500.0,0.00016438,2]
[350154213,1737659442277,-500.0,0.00016438,2]
[350154214,1737659442287,-500.0,0.00016438,2]
[350154216,1737659442297,-901.95,0.00016438,2]
[350154217,1737659442307,-504.44338631,0.00016438,2]
[350154219,1737659442316,-500.0,0.00016438,2]
[350154220,1737659442325,-500.0,0.00016438,2]
[350154221,1737659442338,-1916.0,0.00016438,2]
[350154222,1737659442347,-500.0,0.00016438,2]
[350154224,1737659442357,-871.22,0.00016438,2]
[350154225,1737659442366,-500.0,0.00016438,2]
[350154226,1737659442378,-500.0,0.00016438,2]
[350154227,1737659442387,-1589.5,0.00016438,2]
[350154228,1737659442396,-1591.14,0.00016438,2]
[350154229,1737659442405,-500.0,0.00016438,2]
[350154230,1737659442417,-500.0,0.00016438,2]
[350154231,1737659442427,-701.06,0.00016438,2]
[350154232,1737659442436,-726.08,0.00016438,2]
[350154233,1737659442445,-1735.27,0.00016438,2]
[350154234,1737659442454,-500.0,0.00016438,2]
[350154235,1737659442464,-500.0,0.00016438,2]
[350154236,1737659442473,-500.0,0.00016438,2]
[350154237,1737659442482,-500.0,0.00016438,2]
[350154238,1737659442491,-500.0,0.00016438,2]
[350154239,1737659442500,-916.91,0.00016438,2]
[350154240,1737659442510,-500.0,0.00016438,2]
[350154242,1737659442520,-500.0,0.00016438,2]
[350154244,1737659442529,-4027.0,0.00016438,2]
[350154246,1737659442538,-1282.02,0.00016438,2]
[350154249,1737659442547,-1895.9,0.00016438,2]
[350154251,1737659442556,-502.16400643,0.00016438,2]
[350154253,1737659442567,-500.0,0.00016438,2]
[350154254,1737659442576,-500.0,0.00016438,2]
[350154255,1737659442585,-500.0,0.00016438,2]
[350154256,1737659442594,-500.0,0.00016438,2]
[350154257,1737659442603,-500.0,0.00016438,2]
[350154258,1737659442612,-500.0,0.00016438,2]
[350154259,1737659442622,-1368.39,0.00016438,2]
[350154260,1737659442633,-500.0,0.00016438,2]
[350154261,1737659442644,-500.0,0.00016438,2]
[350154262,1737659442654,-500.0,0.00016438,2]
[350154263,1737659442664,-500.0,0.00016438,2]
[350154264,1737659442673,-501.46659326,0.00016438,2]
[350154265,1737659442684,-3765.33,0.00016438,2]
[350154266,1737659442694,-500.0,0.00016438,2]
[350154267,1737659442703,-907.71,0.00016438,2]
[350154268,1737659442713,-500.0,0.00016438,2]
[350154269,1737659442722,-500.0,0.00016438,2]
[350154270,1737659442732,-890.41,0.00016438,2]
[350154271,1737659442741,-500.0,0.00016438,2]
[350154272,1737659442751,-500.0,0.00016438,2]
[350154273,1737659442760,-500.0,0.00016438,2]
[350154274,1737659442769,-804.17,0.00016438,2]
[350154275,1737659442778,-717.06,0.00016438,2]
[350154276,1737659442787,-500.0,0.00016438,2]
[350154277,1737659442797,-1018.62,0.00016438,2]
[350154278,1737659442806,-500.0,0.00016438,2]
[350154279,1737659442815,-1134.5,0.00016438,2]
[350154280,1737659442823,-500.0,0.00016438,2]
[350154281,1737659442834,-500.0,0.00016438,2]
[350154282,1737659442844,-500.0,0.00016438,2]
[350154283,1737659442854,-500.0,0.00016438,2]
[350154284,1737659442863,-502.53359112,0.00016438,2]
[350154285,1737659442873,-1963.62,0.00016438,2]
[350154286,1737659442882,-500.0,0.00016438,2]
[350154287,1737659442892,-618.37,0.00016438,2]
[350154288,1737659442901,-501.89220847,0.00016438,2]
[350154289,1737659442910,-500.0,0.00016438,2]
[350154290,1737659442920,-500.0,0.00016438,2]
[350154291,1737659442929,-500.0,0.00016438,2]
[350154292,1737659442938,-500.0,0.00016438,2]
[350154293,1737659442947,-500.0,0.00016438,2]
[350154294,1737659442956,-500.0,0.00016438,2]
[350154295,1737659442965,-2352.22,0.00016438,2]
[350154296,1737659442975,-500.0,0.00016438,2]
[350154297,1737659442984,-500.0,0.00016438,2]
[350154298,1737659442993,-1719.23,0.00016438,2]
[350154299,1737659443005,-500.0,0.00016438,2]
[350154301,1737659443014,-500.0,0.00016438,2]
[350154303,1737659443023,-500.0,0.00016438,2]
[350154305,1737659443033,-500.0,0.00016438,2]
[350154307,1737659443042,-500.0,0.00016438,2]
[350154309,1737659443051,-500.0,0.00016438,2]
[350154311,1737659443061,-500.0,0.00016438,2]
[350154313,1737659443070,-500.0,0.00016438,2]
[350154315,1737659443079,-500.0,0.00016438,2]
[350154317,1737659443088,-1152.72,0.00016438,2]
[350154319,1737659443098,-500.0,0.00016438,2]
[350154321,1737659443107,-500.0,0.00016438,2]
[350154323,1737659443117,-500.0,0.00016438,2]
[350154325,1737659443126,-500.0,0.00016438,2]
[350154342,1737659443258,-500.0,0.00016438,2]
[350154344,1737659443268,-500.0,0.00016438,2]
[350154346,1737659443277,-663.45,0.00016438,2]
[350154348,1737659443287,-500.0,0.00016438,2]
[350154350,1737659443296,-500.0,0.00016438,2]
[350154352,1737659443305,-500.0,0.00016438,2]
[350154354,1737659443315,-500.0,0.00016438,2]
[350154356,1737659443324,-597.02,0.00016438,2]
[350154358,1737659443333,-240.83929529,0.00016438,2]
[350154360,1737659443345,-604.98,0.00016438,2]
[350154362,1737659443354,-500.0,0.00016438,2]
[350154364,1737659443364,-500.0,0.00016438,2]
[350154366,1737659443374,-500.0,0.00016438,2]
[350154368,1737659443383,-500.0,0.00016438,2]
[350154370,1737659443392,-2176.5,0.00016438,2]
[350154372,1737659443402,-500.0,0.00016438,2]
[350154374,1737659443411,-695.73,0.00016438,2]
[350154376,1737659443422,-500.0,0.00016438,2]
[350154378,1737659443433,-500.0,0.00016438,2]
[350154380,1737659443443,-3149.47,0.00016438,2]
[350154382,1737659443452,-500.0,0.00016438,2]
[350154383,1737659443461,-500.0,0.00016438,2]
[350154384,1737659443471,-500.0,0.00016438,2]
[350154385,1737659443481,-1018.19,0.00016438,2]
[350154386,1737659443490,-500.0,0.00016438,2]
[350154387,1737659443502,-500.17062851,0.00016438,2]
[350154388,1737659443513,-1436.45,0.00016438,2]
[350154389,1737659443522,-500.0,0.00016438,2]
[350154390,1737659443531,-500.0,0.00016438,2]
[350154391,1737659443541,-500.0,0.00016438,2]
[350154393,1737659443550,-500.0,0.00016438,2]
[350154395,1737659443561,-663.6,0.00016438,2]
[350154397,1737659443570,-301.47586843,0.00016438,2]
[350154423,1737659443817,-198.52413157,0.00016438,2]
[350154425,1737659443827,-640.14587343,0.00016438,2]
[350154427,1737659443839,-266.46412657,0.00016438,2]
[350154429,1737659443848,-500.0,0.00016438,2]
[350154431,1737659443857,-500.0,0.00016438,2]
[350154433,1737659443866,-236.13087345,0.00016438,2]
[350154437,1737659443894,-288.69402722,0.00016438,2]
[350154439,1737659443904,-54.38763928,0.000165,2]
[350154441,1737659443915,-927.89236072,0.000165,2]
[350154443,1737659443924,-821.0,0.000165,2]
[350154445,1737659443933,-1000.0,0.000165,2]
[350154447,1737659443942,-1000.0,0.000165,2]
[350154449,1737659443951,-1000.0,0.000165,2]
[350154451,1737659443960,-694.0,0.000165,3]
[350154453,1737659443969,-1000.0,0.000165,2]
[350154455,1737659443979,-500.0,0.00016578,2]
[350154457,1737659443989,-200.0,0.00016579,2]
[350154459,1737659444000,-337.72792518,0.00016582,2]
[350154461,1737659444010,-337.72792518,0.00016584,2]
[350154463,1737659444020,-1715.83364296,0.00016594,2]
[350154465,1737659444030,-150.0,0.000166,2]
[350154467,1737659444039,-1000.0,0.000166,2]
[350154469,1737659444049,-400.0,0.000166,6]
[350154471,1737659444058,-456.74529196,0.00016601,2]
[350154473,1737659444067,-200.0,0.00016604,2]
[350154475,1737659444077,-2575.4629116,0.00016604,2]
[350154477,1737659444088,-1862.54424,0.00016604,2]
[350154480,1737659444105,-2288.91045091,0.00016604,2]
[350154482,1737659444116,-721.24525557,0.00016604,2]
[350154484,1737659444127,-463.95250134,0.00016604,2]
[350154487,1737659444144,-740.08016606,0.00016604,2]
[350154489,1737659444153,-1818.848,0.00016608,2]
[350154491,1737659444162,-162.31627351,0.00016608,2]
[350154493,1737659444172,-1715.83364296,0.00016611,2]
[350154495,1737659444181,-3464.5984902,0.00016615,2]
[350154514,1737659444357,-5187.59703528,0.00016615,2]
[350154516,1737659444368,-337.72792518,0.00016623,2]
[350154518,1737659444379,-456.74529196,0.00016637,2]
[350154520,1737659444388,-337.72792518,0.00016643,2]
[350154522,1737659444397,-8652.19552548,0.00016647,2]
[350154524,1737659444407,-456.74529196,0.00016652,2]
[350154526,1737659444417,-3718.26100496,0.00016654,2]
[350154528,1737659444428,-4838.96326073,0.00016654,2]
[350154531,1737659444447,-94.97125979,0.00016654,2]
[350154533,1737659444457,-456.74529196,0.00016662,2]
[350154535,1737659444467,-8652.19552548,0.00016663,2]
[350154537,1737659444476,-890.82266787,0.00016666,2]
[350154539,1737659444488,-825.01097509,0.00016666,2]
[350154541,1737659444498,-200.0,0.00016666,2]
[350154543,1737659444510,-430.64066539,0.00016672,2]
[350154545,1737659444519,-337.72792518,0.00016673,2]
[350154547,1737659444529,-1715.83364296,0.0001668,2]
[350154549,1737659444539,-200.0,0.00016682,2]
[350154551,1737659444548,-200.0,0.00016691,2]
[350154553,1737659444557,-1445.28679138,0.00016693,2]
[350154556,1737659444569,-270.54685158,0.00016693,2]
[350154558,1737659444579,-456.74529196,0.00016693,2]
[350154560,1737659444588,-800.0,0.000167,6]
[350154562,1737659444597,-3153.01165645,0.00016701,2]
[350154564,1737659444608,-2744.08494185,0.00016701,2]
[350154566,1737659444617,-2845.0246632,0.00016701,2]
[350154568,1737659444626,-732.14,0.00016711,2]
[350154570,1737659444635,-1020.76,0.00016711,2]
[350154572,1737659444644,-500.0,0.00016711,2]
[350154574,1737659444653,-871.79,0.00016711,2]
[350154576,1737659444662,-500.0,0.00016711,2]
[350154579,1737659444677,-1745.56,0.00016711,2]
[350154581,1737659444690,-3723.73,0.00016711,2]
[350154583,1737659444699,-742.21,0.00016711,2]
[350154585,1737659444709,-779.77,0.00016711,2]
[350154587,1737659444718,-725.66,0.00016711,2]
[350154589,1737659444730,-1457.19,0.00016711,2]
[350154591,1737659444741,-500.0,0.00016711,2]
[350154593,1737659444752,-678.42,0.00016711,2]
[350154596,1737659444762,-1002.67,0.00016711,2]
[350154598,1737659444771,-1122.55,0.00016711,2]
[350154600,1737659444781,-500.0,0.00016711,2]
[350154602,1737659444792,-1000.0,0.00016711,2]
[350154604,1737659444801,-1033.73,0.00016711,2]
[350154606,1737659444811,-500.0,0.00016711,2]
[350154608,1737659444820,-1827.81,0.00016711,2]
[350154610,1737659444829,-1482.85,0.00016711,2]
[350154612,1737659444839,-500.0,0.00016712,2]
[350154614,1737659444847,-500.0,0.00016712,2]
[350154616,1737659444857,-500.0,0.00016712,2]
[350154618,1737659444866,-500.0,0.00016712,2]
[350154620,1737659444878,-500.0,0.00016712,2]
[350154622,1737659444887,-500.0,0.00016712,2]
[350154624,1737659444896,-500.0,0.00016712,2]